[Event "Titled Tuesday Blitz August 16 Early 2022"]
[White "Nathan, Nitish"]
[Black "Vagman, Roy"]
[WhiteFideId "30927870"]
[BlackFideId "2828995"]
[WhiteElo "1813"]
[BlackElo "1956"]
[Result "1-0"]
[Round "04"]
[TimeControl "180+2"]
[Date "2022.08.18"]
[WhiteClock "0:00:00"]
[BlackClock "0:00:00"]

1. d4 {[%clk 0:00:00]}  Nc6 {[%clk 0:00:00]} 2. Bf4 {[%clk 0:00:00]}  Nf6 {[%clk 0:00:00]} 3. c3 {[%clk 0:00:00]}  d6 {[%clk 0:00:00]} 4. e3 {[%clk 0:00:00]}  g6 {[%clk 0:00:00]} 5. Nf3 {[%clk 0:00:00]}  Bg7 {[%clk 0:00:00]} 6. h3 {[%clk 0:00:00]}  O-O {[%clk 0:00:00]} 7. Nbd2 {[%clk 0:00:00]}  Re8 {[%clk 0:00:00]} 8. Be2 {[%clk 0:00:00]}  e5 {[%clk 0:00:00]} 9. Bh2 {[%clk 0:00:00]}  e4 {[%clk 0:00:00]} 10. Ng1 {[%clk 0:00:00]}  Ne7 {[%clk 0:00:00]} 11. c4 {[%clk 0:00:00]}  Nf5 {[%clk 0:00:00]} 12. Nb1 {[%clk 0:00:00]}  Nh4 {[%clk 0:00:00]} 13. Bf1 {[%clk 0:00:00]}  c5 {[%clk 0:00:00]} 14. Ne2 {[%clk 0:00:00]}  Qb6 {[%clk 0:00:00]} 15. Nbc3 {[%clk 0:00:00]}  Bxh3 {[%clk 0:00:00]} 16. Rg1 {[%clk 0:00:00]}  Bg4 {[%clk 0:00:00]} 17. Qb3 {[%clk 0:00:00]}  Qxb3 {[%clk 0:00:00]} 18. axb3 {[%clk 0:00:00]}  cxd4 {[%clk 0:00:00]} 19. Nxd4 {[%clk 0:00:00]}  Nd7 {[%clk 0:00:00]} 20. Bxd6 {[%clk 0:00:00]}  Rad8 {[%clk 0:00:00]} 21. Bc7 {[%clk 0:00:00]}  Rc8 {[%clk 0:00:00]} 22. Ncb5 {[%clk 0:00:00]}  Ne5 {[%clk 0:00:00]} 23. Nd6 {[%clk 0:00:00]}  Rxc7 {[%clk 0:00:00]} 24. Nxe8 {[%clk 0:00:00]}  Rd7 {[%clk 0:00:00]} 25. Nxg7 {[%clk 0:00:00]}  Kxg7 {[%clk 0:00:00]} 26. Be2 {[%clk 0:00:00]}  Bxe2 {[%clk 0:00:00]} 27. Kxe2 {[%clk 0:00:00]}  Nd3 {[%clk 0:00:00]} 28. Rxa7 {[%clk 0:00:00]}  Nxb2 {[%clk 0:00:00]} 29. g3 {[%clk 0:00:00]}  Nf5 {[%clk 0:00:00]} 30. Nxf5+ {[%clk 0:00:00]}  gxf5 {[%clk 0:00:00]} 31. g4 {[%clk 0:00:00]}  Kf6 {[%clk 0:00:00]} 32. gxf5 {[%clk 0:00:00]}  Kxf5 {[%clk 0:00:00]} 33. Ra5+ {[%clk 0:00:00]}  Kf6 {[%clk 0:00:00]} 34. Rh5 {[%clk 0:00:00]}  Rd3 {[%clk 0:00:00]} 35. Rxh7 {[%clk 0:00:00]}  Rxb3 {[%clk 0:00:00]} 36. Rb1 {[%clk 0:00:00]}  Rb4 {[%clk 0:00:00]} 37. Rh4 {[%clk 0:00:00]}  Ke5 {[%clk 0:00:00]} 38. Rh5+ {[%clk 0:00:00]}  f5 {[%clk 0:00:00]} 39. f4+ {[%clk 0:00:00]}  exf3+ {[%clk 0:00:00]} 40. Kxf3 {[%clk 0:00:00]}  Nd3 {[%clk 0:00:00]} 41. Rxb4 {[%clk 0:00:00]}  Nxb4 {[%clk 0:00:00]} 42. e4 {[%clk 0:00:00]}  Kd4 {[%clk 0:00:00]} 43. exf5 {[%clk 0:00:00]}  Nc6 {[%clk 0:00:00]} 44. f6 {[%clk 0:00:00]}  Nd8 {[%clk 0:00:00]} 45. Rd5+ {[%clk 0:00:00]}  Kxc4 {[%clk 0:00:00]} 46. Rxd8 {[%clk 0:00:00]}  b5 {[%clk 0:00:00]} 47. f7 {[%clk 0:00:00]}  b4 {[%clk 0:00:00]} 48. f8=Q {[%clk 0:00:00]}  b3 {[%clk 0:00:00]} 49. Qf7+ {[%clk 0:00:00]}  Kc3 {[%clk 0:00:00]} 50. Rc8+ {[%clk 0:00:00]}  Kb2 {[%clk 0:00:00]} 51. Rb8 {[%clk 0:00:00]}  Ka2 {[%clk 0:00:00]} 52. Qxb3+ {[%clk 0:00:00]}  Ka1 {[%clk 0:00:00]} 53. Qb1# {[%clk 0:00:00]} 1-0


[Site "https://www.chess.com"]

[Event "Titled Tuesday Blitz August 16 Early 2022"]
[White "Nazari, Arad"]
[Black "Martinez Alcantara, Jose Eduardo"]
[WhiteFideId "12577324"]
[BlackFideId "3805662"]
[WhiteElo "2129"]
[BlackElo "2703"]
[Result "1/2-1/2"]
[Round "04"]
[TimeControl "180+1"]
[Date "2022.08.16"]
[WhiteClock "0:00:10"]
[BlackClock "0:00:15"]

1. e4 {[%clk 0:03:00]}  e5 {[%clk 0:02:59]} 2. Nf3 {[%clk 0:02:56]}  Nf6 {[%clk 0:02:59]} 3. Nc3 {[%clk 0:02:56]}  Nc6 {[%clk 0:02:59]} 4. d4 {[%clk 0:02:57]}  exd4 {[%clk 0:02:59]} 5. Nxd4 {[%clk 0:02:58]}  Bb4 {[%clk 0:02:59]} 6. Nxc6 {[%clk 0:02:58]}  bxc6 {[%clk 0:03:00]} 7. Bd3 {[%clk 0:02:58]}  O-O {[%clk 0:03:00]} 8. O-O {[%clk 0:02:59]}  Re8 {[%clk 0:03:00]} 9. Bg5 {[%clk 0:02:58]}  h6 {[%clk 0:03:00]} 10. Bh4 {[%clk 0:02:59]}  Be7 {[%clk 0:03:00]} 11. f4 {[%clk 0:02:48]}  Nxe4 {[%clk 0:02:39]} 12. Bxe7 {[%clk 0:02:47]}  Nxc3 {[%clk 0:02:39]} 13. Bxd8 {[%clk 0:02:42]}  Nxd1 {[%clk 0:02:39]} 14. Bxc7 {[%clk 0:02:40]}  Nxb2 {[%clk 0:02:38]} 15. Rfe1 {[%clk 0:02:24]}  Bb7 {[%clk 0:02:22]} 16. Rxe8+ {[%clk 0:02:16]}  Rxe8 {[%clk 0:02:22]} 17. Rb1 {[%clk 0:02:17]}  Nxd3 {[%clk 0:02:22]} 18. cxd3 {[%clk 0:02:18]}  Ba6 {[%clk 0:02:21]} 19. Rb8 {[%clk 0:02:17]}  Bc8 {[%clk 0:02:01]} 20. Bd6 {[%clk 0:02:09]}  f5 {[%clk 0:02:01]} 21. Ra8 {[%clk 0:02:04]}  a6 {[%clk 0:02:00]} 22. Kf2 {[%clk 0:02:03]}  Kf7 {[%clk 0:02:01]} 23. a4 {[%clk 0:01:54]}  Ke6 {[%clk 0:01:59]} 24. Bc7 {[%clk 0:01:37]}  d6 {[%clk 0:01:46]} 25. a5 {[%clk 0:01:36]}  c5 {[%clk 0:01:36]} 26. Bb6 {[%clk 0:01:17]}  Kd7 {[%clk 0:01:28]} 27. Ra7+ {[%clk 0:01:16]}  Kc6 {[%clk 0:01:20]} 28. Rxg7 {[%clk 0:01:16]}  Be6 {[%clk 0:01:19]} 29. Rh7 {[%clk 0:00:47]}  Bb3 {[%clk 0:01:16]} 30. Rxh6 {[%clk 0:00:46]}  Bc2 {[%clk 0:01:15]} 31. Rh3 {[%clk 0:00:43]}  d5 {[%clk 0:00:59]} 32. Re3 {[%clk 0:00:39]}  Rh8 {[%clk 0:00:59]} 33. h3 {[%clk 0:00:33]}  Kb5 {[%clk 0:00:50]} 34. g4 {[%clk 0:00:30]}  fxg4 {[%clk 0:00:35]} 35. hxg4 {[%clk 0:00:31]}  Rc8 {[%clk 0:00:35]} 36. Ke2 {[%clk 0:00:25]}  Rg8 {[%clk 0:00:27]} 37. Rg3 {[%clk 0:00:22]}  c4 {[%clk 0:00:22]} 38. dxc4+ {[%clk 0:00:21]}  dxc4 {[%clk 0:00:19]} 39. Kf2 {[%clk 0:00:10]}  Bd3 {[%clk 0:00:14]} 40. f5 {[%clk 0:00:09]}  Kc6 {[%clk 0:00:15]} 41. Bd4 {[%clk 0:00:08]}  Kd5 {[%clk 0:00:15]} 42. Bc3 {[%clk 0:00:08]}  Rb8 {[%clk 0:00:14]} 43. f6 {[%clk 0:00:08]}  Bg6 {[%clk 0:00:14]} 44. Re3 {[%clk 0:00:08]}  Rb3 {[%clk 0:00:14]} 45. Re5+ {[%clk 0:00:08]}  Kd6 {[%clk 0:00:15]} 46. Re3 {[%clk 0:00:09]}  Kd5 {[%clk 0:00:15]} 47. Re5+ {[%clk 0:00:09]}  Kd6 {[%clk 0:00:15]} 48. Re3 {[%clk 0:00:10]}  Kd5 {[%clk 0:00:15]} 1/2-1/2


[Site "https://www.chess.com"]

[Event "Titled Tuesday Blitz August 16 Early 2022"]
[White "Nemurov, Aleksandr"]
[Black "Shukhman, Anna"]
[WhiteFideId "4194187"]
[BlackFideId "54180058"]
[WhiteElo "2190"]
[BlackElo "1726"]
[Result "0-1"]
[Round "04"]
[TimeControl "180+2"]
[Date "2022.08.18"]
[WhiteClock "0:00:00"]
[BlackClock "0:00:00"]

1. b3 {[%clk 0:00:00]}  e5 {[%clk 0:00:00]} 2. Bb2 {[%clk 0:00:00]}  Nc6 {[%clk 0:00:00]} 3. e3 {[%clk 0:00:00]}  Nf6 {[%clk 0:00:00]} 4. Bb5 {[%clk 0:00:00]}  Bd6 {[%clk 0:00:00]} 5. Na3 {[%clk 0:00:00]}  a6 {[%clk 0:00:00]} 6. Bxc6 {[%clk 0:00:00]}  dxc6 {[%clk 0:00:00]} 7. Nc4 {[%clk 0:00:00]}  Qe7 {[%clk 0:00:00]} 8. Nxd6+ {[%clk 0:00:00]}  cxd6 {[%clk 0:00:00]} 9. d3 {[%clk 0:00:00]}  O-O {[%clk 0:00:00]} 10. h3 {[%clk 0:00:00]}  e4 {[%clk 0:00:00]} 11. Bxf6 {[%clk 0:00:00]}  Qxf6 {[%clk 0:00:00]} 12. dxe4 {[%clk 0:00:00]}  Qc3+ {[%clk 0:00:00]} 13. Kf1 {[%clk 0:00:00]}  f5 {[%clk 0:00:00]} 14. exf5 {[%clk 0:00:00]}  Bxf5 {[%clk 0:00:00]} 15. Rc1 {[%clk 0:00:00]}  Rae8 {[%clk 0:00:00]} 16. Ne2 {[%clk 0:00:00]}  Qf6 {[%clk 0:00:00]} 17. Qd4 {[%clk 0:00:00]}  Re5 {[%clk 0:00:00]} 18. Nf4 {[%clk 0:00:00]}  g5 {[%clk 0:00:00]} 19. Nh5 {[%clk 0:00:00]}  Bd3+ {[%clk 0:00:00]} 20. Kg1 {[%clk 0:00:00]}  Qxf2+ {[%clk 0:00:00]} 21. Kh2 {[%clk 0:00:00]}  Be4 {[%clk 0:00:00]} 22. Rhg1 {[%clk 0:00:00]}  Rf3 {[%clk 0:00:00]} 23. Nf6+ {[%clk 0:00:00]}  Kh8 {[%clk 0:00:00]} 24. Nxe4 {[%clk 0:00:00]}  Rxh3+ {[%clk 0:00:00]} 25. Kxh3 {[%clk 0:00:00]}  Qh4# {[%clk 0:00:00]} 0-1


[Site "https://www.chess.com"]

[Event "Titled Tuesday Blitz August 16 Early 2022"]
[White "Popilski, Gil"]
[Black "Chigaev, Maksim"]
[WhiteFideId "2809060"]
[BlackFideId "4108116"]
[WhiteElo "2537"]
[BlackElo "2487"]
[Result "0-1"]
[Round "04"]
[TimeControl "180+1"]
[Date "2022.08.16"]
[WhiteClock "0:00:01"]
[BlackClock "0:00:11"]

1. e4 {[%clk 0:03:00]}  c5 {[%clk 0:02:57]} 2. Nf3 {[%clk 0:03:00]}  d6 {[%clk 0:02:58]} 3. d4 {[%clk 0:03:00]}  cxd4 {[%clk 0:02:59]} 4. Nxd4 {[%clk 0:02:58]}  Nf6 {[%clk 0:02:59]} 5. Nc3 {[%clk 0:02:57]}  a6 {[%clk 0:03:00]} 6. Bd3 {[%clk 0:02:54]}  e5 {[%clk 0:02:58]} 7. Nde2 {[%clk 0:02:53]}  Be7 {[%clk 0:02:58]} 8. O-O {[%clk 0:02:53]}  Be6 {[%clk 0:02:59]} 9. f4 {[%clk 0:02:50]}  exf4 {[%clk 0:02:56]} 10. Nxf4 {[%clk 0:02:49]}  Nc6 {[%clk 0:02:57]} 11. Ncd5 {[%clk 0:02:47]}  Bxd5 {[%clk 0:02:52]} 12. Nxd5 {[%clk 0:02:30]}  Nxd5 {[%clk 0:02:51]} 13. exd5 {[%clk 0:02:31]}  Ne5 {[%clk 0:02:52]} 14. Bf4 {[%clk 0:02:25]}  Bf6 {[%clk 0:02:48]} 15. Kh1 {[%clk 0:01:47]}  O-O {[%clk 0:02:44]} 16. c3 {[%clk 0:01:42]}  g6 {[%clk 0:02:40]} 17. a4 {[%clk 0:01:38]}  Bg7 {[%clk 0:02:34]} 18. a5 {[%clk 0:01:37]}  Rc8 {[%clk 0:02:25]} 19. Be2 {[%clk 0:01:23]}  Rc5 {[%clk 0:02:10]} 20. Qb3 {[%clk 0:01:18]}  Qd7 {[%clk 0:01:55]} 21. Be3 {[%clk 0:01:14]}  Rcc8 {[%clk 0:01:53]} 22. Ra4 {[%clk 0:01:14]}  Rfe8 {[%clk 0:01:39]} 23. Rb4 {[%clk 0:01:13]}  Rc7 {[%clk 0:01:08]} 24. Bb6 {[%clk 0:01:12]}  Rcc8 {[%clk 0:01:08]} 25. Bg1 {[%clk 0:01:11]}  Re7 {[%clk 0:01:07]} 26. Rb6 {[%clk 0:01:10]}  f5 {[%clk 0:01:02]} 27. Qb4 {[%clk 0:01:06]}  Nf7 {[%clk 0:01:00]} 28. Bd1 {[%clk 0:01:00]}  Rc7 {[%clk 0:00:50]} 29. Ba4 {[%clk 0:00:59]}  Qd8 {[%clk 0:00:50]} 30. Qh4 {[%clk 0:00:47]}  Be5 {[%clk 0:00:46]} 31. c4 {[%clk 0:00:17]}  Kg7 {[%clk 0:00:40]} 32. b4 {[%clk 0:00:17]}  Bf6 {[%clk 0:00:34]} 33. Bd4 {[%clk 0:00:16]}  Ne5 {[%clk 0:00:30]} 34. Qf2 {[%clk 0:00:04]}  Rxc4 {[%clk 0:00:27]} 35. b5 {[%clk 0:00:03]}  Rxa4 {[%clk 0:00:26]} 36. bxa6 {[%clk 0:00:03]}  bxa6 {[%clk 0:00:27]} 37. g4 {[%clk 0:00:02]}  Nxg4 {[%clk 0:00:26]} 38. Bxf6+ {[%clk 0:00:02]}  Nxf6 {[%clk 0:00:27]} 39. Qg3 {[%clk 0:00:02]}  Qa8 {[%clk 0:00:15]} 40. Rxf5 {[%clk 0:00:01]}  Nxd5 {[%clk 0:00:11]} 0-1


[Site "https://www.chess.com"]

[Event "Titled Tuesday Blitz August 16 Early 2022"]
[White "Postnikov, Daniil"]
[Black "Mitrabha, Guha"]
[WhiteFideId "4166329"]
[BlackFideId "5057000"]
[WhiteElo "2261"]
[BlackElo "2499"]
[Result "0-1"]
[Round "04"]
[TimeControl "180+2"]
[Date "2022.08.18"]
[WhiteClock "0:00:00"]
[BlackClock "0:00:00"]

1. d4 {[%clk 0:00:00]}  Nf6 {[%clk 0:00:00]} 2. c4 {[%clk 0:00:00]}  e6 {[%clk 0:00:00]} 3. Nc3 {[%clk 0:00:00]}  Bb4 {[%clk 0:00:00]} 4. Qc2 {[%clk 0:00:00]}  O-O {[%clk 0:00:00]} 5. Nf3 {[%clk 0:00:00]}  b6 {[%clk 0:00:00]} 6. g3 {[%clk 0:00:00]}  Bb7 {[%clk 0:00:00]} 7. Bg2 {[%clk 0:00:00]}  d6 {[%clk 0:00:00]} 8. O-O {[%clk 0:00:00]}  Nbd7 {[%clk 0:00:00]} 9. a3 {[%clk 0:00:00]}  Bxc3 {[%clk 0:00:00]} 10. Qxc3 {[%clk 0:00:00]}  a5 {[%clk 0:00:00]} 11. b3 {[%clk 0:00:00]}  Be4 {[%clk 0:00:00]} 12. Rd1 {[%clk 0:00:00]}  a4 {[%clk 0:00:00]} 13. b4 {[%clk 0:00:00]}  c6 {[%clk 0:00:00]} 14. Bf1 {[%clk 0:00:00]}  d5 {[%clk 0:00:00]} 15. Nd2 {[%clk 0:00:00]}  Bg6 {[%clk 0:00:00]} 16. Bb2 {[%clk 0:00:00]}  b5 {[%clk 0:00:00]} 17. c5 {[%clk 0:00:00]}  Re8 {[%clk 0:00:00]} 18. Nf3 {[%clk 0:00:00]}  Ne4 {[%clk 0:00:00]} 19. Qc1 {[%clk 0:00:00]}  Bh5 {[%clk 0:00:00]} 20. Bg2 {[%clk 0:00:00]}  Qf6 {[%clk 0:00:00]} 21. Rf1 {[%clk 0:00:00]}  h6 {[%clk 0:00:00]} 22. Qe3 {[%clk 0:00:00]}  Qd8 {[%clk 0:00:00]} 23. Rad1 {[%clk 0:00:00]}  Qc7 {[%clk 0:00:00]} 24. Ne5 {[%clk 0:00:00]}  Nxe5 {[%clk 0:00:00]} 25. dxe5 {[%clk 0:00:00]}  Ng5 {[%clk 0:00:00]} 26. f3 {[%clk 0:00:00]}  Nh7 {[%clk 0:00:00]} 27. Bd4 {[%clk 0:00:00]}  Bg6 {[%clk 0:00:00]} 28. Qd2 {[%clk 0:00:00]}  f6 {[%clk 0:00:00]} 29. Qc3 {[%clk 0:00:00]}  f5 {[%clk 0:00:00]} 30. f4 {[%clk 0:00:00]}  Bh5 {[%clk 0:00:00]} 31. Rd2 {[%clk 0:00:00]}  g5 {[%clk 0:00:00]} 32. e3 {[%clk 0:00:00]}  Qg7 {[%clk 0:00:00]} 33. Kf2 {[%clk 0:00:00]}  Nf8 {[%clk 0:00:00]} 34. Rg1 {[%clk 0:00:00]}  Ng6 {[%clk 0:00:00]} 35. Bf3 {[%clk 0:00:00]}  Bxf3 {[%clk 0:00:00]} 36. Kxf3 {[%clk 0:00:00]}  Kh7 {[%clk 0:00:00]} 37. Rdg2 {[%clk 0:00:00]}  Rg8 {[%clk 0:00:00]} 38. Ke2 {[%clk 0:00:00]}  Qf7 {[%clk 0:00:00]} 39. Qe1 {[%clk 0:00:00]}  Kg7 {[%clk 0:00:00]} 40. Qf2 {[%clk 0:00:00]}  Kf8 {[%clk 0:00:00]} 41. Kd2 {[%clk 0:00:00]}  Ke7 {[%clk 0:00:00]} 42. Kc3 {[%clk 0:00:00]}  Rg7 {[%clk 0:00:00]} 43. Qe2 {[%clk 0:00:00]}  Rag8 {[%clk 0:00:00]} 44. Qh5 {[%clk 0:00:00]}  Rh7 {[%clk 0:00:00]} 45. g4 {[%clk 0:00:00]}  fxg4 {[%clk 0:00:00]} 46. Rxg4 {[%clk 0:00:00]}  Nxe5 {[%clk 0:00:00]} 47. Qxf7+ {[%clk 0:00:00]}  Nxf7 {[%clk 0:00:00]} 48. h4 {[%clk 0:00:00]}  h5 {[%clk 0:00:00]} 49. Rxg5 {[%clk 0:00:00]}  Nxg5 {[%clk 0:00:00]} 50. fxg5 {[%clk 0:00:00]}  Rf7 {[%clk 0:00:00]} 51. Be5 {[%clk 0:00:00]}  Rf5 {[%clk 0:00:00]} 52. Kd4 {[%clk 0:00:00]}  Kf7 {[%clk 0:00:00]} 53. Rg2 {[%clk 0:00:00]}  Kg6 {[%clk 0:00:00]} 54. Bf6 {[%clk 0:00:00]}  e5+ {[%clk 0:00:00]} 55. Bxe5 {[%clk 0:00:00]}  Re8 {[%clk 0:00:00]} 56. Bf4 {[%clk 0:00:00]}  Re4+ {[%clk 0:00:00]} 57. Kd3 {[%clk 0:00:00]}  Rf8 {[%clk 0:00:00]} 58. Rf2 {[%clk 0:00:00]}  Rc4 {[%clk 0:00:00]} 59. Rf3 {[%clk 0:00:00]}  Rf7 {[%clk 0:00:00]} 60. Rf2 {[%clk 0:00:00]}  Rc1 {[%clk 0:00:00]} 61. Ra2 {[%clk 0:00:00]}  Rb1 {[%clk 0:00:00]} 62. Kd4 {[%clk 0:00:00]}  Re7 {[%clk 0:00:00]} 63. Kd3 {[%clk 0:00:00]}  Rb3+ {[%clk 0:00:00]} 64. Ke2 {[%clk 0:00:00]}  d4 {[%clk 0:00:00]} 65. Kf3 {[%clk 0:00:00]}  dxe3 {[%clk 0:00:00]} 66. Re2 {[%clk 0:00:00]}  Rxa3 {[%clk 0:00:00]} 67. Bxe3 {[%clk 0:00:00]}  Raxe3+ {[%clk 0:00:00]} 68. Rxe3 {[%clk 0:00:00]}  Rxe3+ {[%clk 0:00:00]} 69. Kxe3 {[%clk 0:00:00]}  a3 {[%clk 0:00:00]} 70. Kd3 {[%clk 0:00:00]}  a2 {[%clk 0:00:00]} 71. Kc2 {[%clk 0:00:00]}  a1=Q {[%clk 0:00:00]} 0-1


[Site "https://www.chess.com"]

[Event "Titled Tuesday Blitz August 16 Early 2022"]
[White "Proudian, Armen"]
[Black "Orzech, Dominik"]
[WhiteFideId "2130734"]
[BlackFideId "1115065"]
[WhiteElo "2380"]
[BlackElo "2272"]
[Result "1-0"]
[Round "04"]
[TimeControl "180+2"]
[Date "2022.08.18"]
[WhiteClock "0:00:00"]
[BlackClock "0:00:00"]

1. e4 {[%clk 0:00:00]}  e6 {[%clk 0:00:00]} 2. d4 {[%clk 0:00:00]}  d5 {[%clk 0:00:00]} 3. exd5 {[%clk 0:00:00]}  exd5 {[%clk 0:00:00]} 4. Bd3 {[%clk 0:00:00]}  Nc6 {[%clk 0:00:00]} 5. c3 {[%clk 0:00:00]}  Bd6 {[%clk 0:00:00]} 6. Qf3 {[%clk 0:00:00]}  Nge7 {[%clk 0:00:00]} 7. Ne2 {[%clk 0:00:00]}  h5 {[%clk 0:00:00]} 8. h3 {[%clk 0:00:00]}  Be6 {[%clk 0:00:00]} 9. Bf4 {[%clk 0:00:00]}  Qd7 {[%clk 0:00:00]} 10. Nd2 {[%clk 0:00:00]}  O-O-O {[%clk 0:00:00]} 11. O-O {[%clk 0:00:00]}  Nf5 {[%clk 0:00:00]} 12. Bxf5 {[%clk 0:00:00]}  Bxf5 {[%clk 0:00:00]} 13. Bxd6 {[%clk 0:00:00]}  cxd6 {[%clk 0:00:00]} 14. Qxd5 {[%clk 0:00:00]}  Ne7 {[%clk 0:00:00]} 15. Qf3 {[%clk 0:00:00]}  Ng6 {[%clk 0:00:00]} 16. Nf4 {[%clk 0:00:00]}  Nh4 {[%clk 0:00:00]} 17. Qg3 {[%clk 0:00:00]}  g5 {[%clk 0:00:00]} 18. Qxg5 {[%clk 0:00:00]}  Nxg2 {[%clk 0:00:00]} 19. Kh2 {[%clk 0:00:00]}  Rdg8 {[%clk 0:00:00]} 20. Qxg2 {[%clk 0:00:00]}  Rxg2+ {[%clk 0:00:00]} 21. Nxg2 {[%clk 0:00:00]}  Bxh3 {[%clk 0:00:00]} 22. Rg1 {[%clk 0:00:00]}  Rg8 {[%clk 0:00:00]} 23. Ne3 {[%clk 0:00:00]}  Re8 {[%clk 0:00:00]} 24. Rg5 {[%clk 0:00:00]}  Bg4 {[%clk 0:00:00]} 25. Ndc4 {[%clk 0:00:00]}  f6 {[%clk 0:00:00]} 26. Rd5 {[%clk 0:00:00]}  Kc7 {[%clk 0:00:00]} 27. Nxd6 {[%clk 0:00:00]}  Rxe3 {[%clk 0:00:00]} 28. Nb5+ {[%clk 0:00:00]}  Qxb5 {[%clk 0:00:00]} 29. Rxb5 {[%clk 0:00:00]}  Re2 {[%clk 0:00:00]} 30. Kg3 {[%clk 0:00:00]}  f5 {[%clk 0:00:00]} 31. f3 {[%clk 0:00:00]}  Re3 {[%clk 0:00:00]} 32. Rf1 {[%clk 0:00:00]}  a6 {[%clk 0:00:00]} 33. Rc5+ {[%clk 0:00:00]}  Kd6 {[%clk 0:00:00]} 34. Kf4 {[%clk 0:00:00]} 1-0


[Site "https://www.chess.com"]

[Event "Titled Tuesday Blitz August 16 Early 2022"]
[White "Przybylski, Wojciech"]
[Black "Bachmann, Axel"]
[WhiteFideId "1117599"]
[BlackFideId "3700488"]
[WhiteElo "2133"]
[BlackElo "2595"]
[Result "0-1"]
[Round "04"]
[TimeControl "180+2"]
[Date "2022.08.18"]
[WhiteClock "0:00:00"]
[BlackClock "0:00:00"]

1. e4 {[%clk 0:00:00]}  d6 {[%clk 0:00:00]} 2. d4 {[%clk 0:00:00]}  Nf6 {[%clk 0:00:00]} 3. Nc3 {[%clk 0:00:00]}  g6 {[%clk 0:00:00]} 4. Nf3 {[%clk 0:00:00]}  c6 {[%clk 0:00:00]} 5. a4 {[%clk 0:00:00]}  Bg7 {[%clk 0:00:00]} 6. Be2 {[%clk 0:00:00]}  O-O {[%clk 0:00:00]} 7. O-O {[%clk 0:00:00]}  Qa5 {[%clk 0:00:00]} 8. Bd2 {[%clk 0:00:00]}  Bg4 {[%clk 0:00:00]} 9. h3 {[%clk 0:00:00]}  Bxf3 {[%clk 0:00:00]} 10. Bxf3 {[%clk 0:00:00]}  Nbd7 {[%clk 0:00:00]} 11. Ne2 {[%clk 0:00:00]}  Qc7 {[%clk 0:00:00]} 12. a5 {[%clk 0:00:00]}  e5 {[%clk 0:00:00]} 13. c3 {[%clk 0:00:00]}  Rfe8 {[%clk 0:00:00]} 14. Ng3 {[%clk 0:00:00]}  Rad8 {[%clk 0:00:00]} 15. Re1 {[%clk 0:00:00]}  d5 {[%clk 0:00:00]} 16. Qa4 {[%clk 0:00:00]}  exd4 {[%clk 0:00:00]} 17. cxd4 {[%clk 0:00:00]}  dxe4 {[%clk 0:00:00]} 18. Nxe4 {[%clk 0:00:00]}  Nxe4 {[%clk 0:00:00]} 19. Bxe4 {[%clk 0:00:00]}  Nc5 {[%clk 0:00:00]} 20. dxc5 {[%clk 0:00:00]}  Rxd2 {[%clk 0:00:00]} 21. Bf3 {[%clk 0:00:00]}  Rxe1+ {[%clk 0:00:00]} 22. Rxe1 {[%clk 0:00:00]}  Bd4 {[%clk 0:00:00]} 23. Re8+ {[%clk 0:00:00]}  Kg7 {[%clk 0:00:00]} 24. Re2 {[%clk 0:00:00]}  Qf4 {[%clk 0:00:00]} 25. Re4 {[%clk 0:00:00]}  Bxf2+ {[%clk 0:00:00]} 26. Kh1 {[%clk 0:00:00]}  Qf6 {[%clk 0:00:00]} 27. Rf4 {[%clk 0:00:00]}  Qxb2 {[%clk 0:00:00]} 28. Kh2 {[%clk 0:00:00]}  Qc1 {[%clk 0:00:00]} 29. Rxf7+ {[%clk 0:00:00]}  Kxf7 {[%clk 0:00:00]} 30. Qf4+ {[%clk 0:00:00]}  Ke6 {[%clk 0:00:00]} 31. Bg4+ {[%clk 0:00:00]}  Kd5 {[%clk 0:00:00]} 32. Bf3+ {[%clk 0:00:00]}  Kxc5 {[%clk 0:00:00]} 33. Qe5+ {[%clk 0:00:00]}  Kb4 {[%clk 0:00:00]} 34. Qf4+ {[%clk 0:00:00]}  Ka3 {[%clk 0:00:00]} 35. Qf8+ {[%clk 0:00:00]}  c5 {[%clk 0:00:00]} 36. h4 {[%clk 0:00:00]}  Rd4 {[%clk 0:00:00]} 37. Qe7 {[%clk 0:00:00]}  Qg1+ {[%clk 0:00:00]} 0-1


[Site "https://www.chess.com"]

[Event "Titled Tuesday Blitz August 16 Early 2022"]
[White "Reprintsev, Alexander"]
[Black "Agasarov, Benik"]
[WhiteFideId "14100541"]
[BlackFideId "13314823"]
[WhiteElo "2108"]
[BlackElo "2152"]
[Result "1/2-1/2"]
[Round "04"]
[TimeControl "180+2"]
[Date "2022.08.18"]
[WhiteClock "0:00:00"]
[BlackClock "0:00:00"]

1. e4 {[%clk 0:00:00]}  c6 {[%clk 0:00:00]} 2. Nc3 {[%clk 0:00:00]}  d5 {[%clk 0:00:00]} 3. Nf3 {[%clk 0:00:00]}  Bg4 {[%clk 0:00:00]} 4. h3 {[%clk 0:00:00]}  Bxf3 {[%clk 0:00:00]} 5. Qxf3 {[%clk 0:00:00]}  e6 {[%clk 0:00:00]} 6. b3 {[%clk 0:00:00]}  d4 {[%clk 0:00:00]} 7. Ne2 {[%clk 0:00:00]}  c5 {[%clk 0:00:00]} 8. Nf4 {[%clk 0:00:00]}  Nc6 {[%clk 0:00:00]} 9. Bb5 {[%clk 0:00:00]}  Qb6 {[%clk 0:00:00]} 10. c4 {[%clk 0:00:00]}  a6 {[%clk 0:00:00]} 11. Ba4 {[%clk 0:00:00]}  Ne7 {[%clk 0:00:00]} 12. O-O {[%clk 0:00:00]}  Qc7 {[%clk 0:00:00]} 13. d3 {[%clk 0:00:00]}  Ng6 {[%clk 0:00:00]} 14. Nxg6 {[%clk 0:00:00]}  hxg6 {[%clk 0:00:00]} 15. a3 {[%clk 0:00:00]}  Bd6 {[%clk 0:00:00]} 16. Re1 {[%clk 0:00:00]}  O-O {[%clk 0:00:00]} 17. Bxc6 {[%clk 0:00:00]}  Qxc6 {[%clk 0:00:00]} 18. e5 {[%clk 0:00:00]}  Qxf3 {[%clk 0:00:00]} 19. gxf3 {[%clk 0:00:00]}  Bc7 {[%clk 0:00:00]} 20. f4 {[%clk 0:00:00]}  b5 {[%clk 0:00:00]} 21. b4 {[%clk 0:00:00]}  Rfc8 {[%clk 0:00:00]} 22. Bd2 {[%clk 0:00:00]}  Bd8 {[%clk 0:00:00]} 23. Rec1 {[%clk 0:00:00]}  Be7 {[%clk 0:00:00]} 24. bxc5 {[%clk 0:00:00]}  Bxc5 {[%clk 0:00:00]} 25. Bb4 {[%clk 0:00:00]}  Bf8 {[%clk 0:00:00]} 26. cxb5 {[%clk 0:00:00]}  axb5 {[%clk 0:00:00]} 27. Rxc8 {[%clk 0:00:00]}  Rxc8 {[%clk 0:00:00]} 28. Rb1 {[%clk 0:00:00]}  Bxb4 {[%clk 0:00:00]} 29. Rxb4 {[%clk 0:00:00]}  Rc3 {[%clk 0:00:00]} 30. Rxd4 {[%clk 0:00:00]}  Rxa3 {[%clk 0:00:00]} 31. Kf1 {[%clk 0:00:00]}  Ra4 {[%clk 0:00:00]} 32. Rd8+ {[%clk 0:00:00]}  Kh7 {[%clk 0:00:00]} 33. Rb8 {[%clk 0:00:00]}  Rxf4 {[%clk 0:00:00]} 34. Rxb5 {[%clk 0:00:00]}  Rf3 {[%clk 0:00:00]} 35. Ke2 {[%clk 0:00:00]}  Rxh3 {[%clk 0:00:00]} 36. Rb7 {[%clk 0:00:00]}  Kg8 {[%clk 0:00:00]} 37. Rb8+ {[%clk 0:00:00]}  Kh7 {[%clk 0:00:00]} 38. Rb7 {[%clk 0:00:00]}  Rh5 {[%clk 0:00:00]} 39. Rxf7 {[%clk 0:00:00]}  Rxe5+ {[%clk 0:00:00]} 40. Kf1 {[%clk 0:00:00]}  Rf5 {[%clk 0:00:00]} 41. Re7 {[%clk 0:00:00]}  e5 {[%clk 0:00:00]} 42. Ke2 {[%clk 0:00:00]}  g5 {[%clk 0:00:00]} 43. Re6 {[%clk 0:00:00]}  g6 {[%clk 0:00:00]} 44. Ke3 {[%clk 0:00:00]}  g4 {[%clk 0:00:00]} 45. Ra6 {[%clk 0:00:00]}  Kh6 {[%clk 0:00:00]} 46. Ke2 {[%clk 0:00:00]}  Kg5 {[%clk 0:00:00]} 47. Ra4 {[%clk 0:00:00]}  Rf4 {[%clk 0:00:00]} 48. Ra5 {[%clk 0:00:00]}  Kf5 {[%clk 0:00:00]} 49. Ra8 {[%clk 0:00:00]}  Rb4 {[%clk 0:00:00]} 50. Rf8+ {[%clk 0:00:00]}  Kg5 {[%clk 0:00:00]} 51. Re8 {[%clk 0:00:00]}  e4 {[%clk 0:00:00]} 52. dxe4 {[%clk 0:00:00]}  Kf4 {[%clk 0:00:00]} 53. Kd3 {[%clk 0:00:00]}  Rb3+ {[%clk 0:00:00]} 54. Kd4 {[%clk 0:00:00]}  Rb4+ {[%clk 0:00:00]} 55. Kd3 {[%clk 0:00:00]}  Rb3+ {[%clk 0:00:00]} 56. Kd4 {[%clk 0:00:00]}  Rb4+ {[%clk 0:00:00]} 57. Kd3 {[%clk 0:00:00]} 1/2-1/2


[Site "https://www.chess.com"]